bitfinex/quotes_SOLUSD_20240614
["timestamp","ask_amount","ask_price","bid_price","bid_amount"]
[1718352628887,15.8789,147.98,147.89,71.17]
[1718352629085,6.17,147.95,147.9,6.17]
[1718352629292,15.8789,147.98,147.91,6.17]
[1718352629594,6.17,147.97,147.91,6.17]
[1718352630967,6.17,147.96,147.89,65.0]
[1718352631170,15.8789,147.98,147.9,6.17]
[1718352631599,6.17,147.96,147.9,6.17]
[1718352634099,6.17,147.96,147.89,65.0]
[1718352634310,15.8789,147.98,147.89,71.17]
[1718352634495,6.17,147.95,147.89,65.0]
[1718352634696,6.17,147.96,147.9,6.17]
[1718352634895,6.17,147.95,147.89,71.17]
[1718352635087,6.17,147.96,147.9,6.17]
[1718352635278,6.17,147.96,147.89,65.0]
[1718352635792,15.8789,147.98,147.9,6.17]
[1718352636104,6.17,147.96,147.9,6.17]
[1718352636524,15.8789,147.98,147.91,45.0]
[1718352636681,6.17,147.96,147.91,45.0]
[1718352637082,15.8789,147.98,147.91,45.0]
[1718352637492,6.4378,148.0,147.91,51.17]
[1718352637493,6.17,147.97,147.91,51.17]
[1718352637700,6.4378,148.0,147.91,51.17]
[1718352637701,6.4378,148.0,147.93,6.17]
[1718352637891,6.17,147.98,147.93,6.17]
[1718352638584,6.4378,148.0,147.93,6.17]
[1718352638791,6.17,147.98,147.93,6.17]
[1718352639388,6.4378,148.0,147.93,6.17]
[1718352639794,6.17,147.99,147.93,6.17]
[1718352640095,6.17,147.98,147.93,6.17]
[1718352640284,16.4731,148.01,147.94,71.17]
[1718352640617,6.17,147.99,147.94,26.17]
[1718352640792,6.17,147.98,147.94,20.0]
[1718352640990,6.17,147.98,147.92,26.17]
[1718352641189,6.17,147.98,147.93,51.17]
[1718352641407,6.17,147.98,147.94,20.0]
[1718352641711,6.17,147.99,147.94,20.0]
[1718352641913,6.17,147.97,147.94,20.0]
[1718352642788,6.17,147.96,147.91,16.2608]
[1718352642987,6.4143,148.0,147.91,16.2608]
[1718352643417,6.17,147.97,147.91,22.4308]
[1718352643627,6.4143,148.0,147.91,22.4308]
[1718352643918,6.17,147.96,147.91,16.2608]
[1718352644296,6.4143,148.0,147.91,16.2608]
[1718352644930,24.68,147.98,147.88,25.0671]
[1718352645103,24.68,147.98,147.88,22.5651]
[1718352645795,24.68,147.98,147.88,25.0671]
[1718352646021,24.68,147.98,147.89,65.0]
[1718352646226,0.17,147.97,147.89,20.0]
[1718352646388,0.17,147.95,147.86,6.17]
[1718352646724,6.17,147.92,147.86,8.6723]
[1718352647099,6.17,147.92,147.86,6.17]
[1718352647509,20.17,147.95,147.87,20.0]
[1718352647717,6.17,147.92,147.87,26.17]
[1718352648099,6.17,147.93,147.87,26.17]
[1718352648315,20.0,147.95,147.87,26.17]
[1718352648521,16.6274,147.96,147.88,6.17]
[1718352648729,6.17,147.94,147.89,6.17]
[1718352649318,6.17,147.95,147.89,6.17]
[1718352649839,6.17,147.94,147.89,6.17]
[1718352650232,16.6274,147.96,147.89,6.17]
[1718352650440,6.17,147.94,147.89,6.17]
[1718352650614,6.17,147.95,147.89,6.17]
[1718352652008,21.5231,148.0,147.9,65.17]
[1718352652210,6.17,147.96,147.91,6.17]
[1718352652512,6.17,147.96,147.92,45.0]
[1718352653129,6.17,147.96,147.91,45.0]
[1718352654739,6.17,147.98,147.85,15.9108]
[1718352654942,0.17,147.96,147.86,6.17]
[1718352655246,6.17,147.93,147.88,6.17]
[1718352655449,6.17,147.94,147.87,2.5021]
[1718352655617,20.0,147.97,147.86,5.0044]
[1718352655819,6.17,147.95,147.89,26.48]
[1718352656037,6.17,147.95,147.9,45.0]
[1718352659024,24.68,147.98,147.9,45.0]
[1718352659826,24.68,147.98,147.89,51.17]
[1718352660025,24.68,147.98,147.9,20.0]
[1718352660646,6.17,147.91,147.85,15.9108]
[1718352660826,6.17,147.9,147.85,15.9108]
[1718352661025,100.34,147.95,147.85,15.9108]
[1718352661248,6.17,147.9,147.85,15.9108]
[1718352661542,6.17,147.89,147.81,35.6209]
[1718352661850,6.17,147.89,147.83,6.17]
[1718352662231,6.5929,147.93,147.81,15.3109]
[1718352662438,6.17,147.87,147.81,15.3109]
[1718352662646,6.17,147.85,147.81,15.3109]
[1718352663123,6.17,147.84,147.8,1.17555275]
[1718352663328,6.17,147.84,147.79,22.0808]
[1718352663527,0.17,147.89,147.79,23.25723505]
[1718352663726,6.17,147.84,147.79,23.25723505]
[1718352664421,6.17,147.84,147.79,17.08723505]
[1718352664618,0.17,147.9,147.79,43.56723505]
[1718352664825,16.3484,147.91,147.83,6.17]
[1718352665056,6.17,147.89,147.84,6.17]
[1718352665533,16.3484,147.91,147.84,6.17]
[1718352665730,16.3484,147.91,147.85,6.17]
[1718352665937,6.17,147.9,147.85,6.17]
[1718352666559,6.5929,147.93,147.86,71.17]
[1718352666560,6.17,147.92,147.86,71.17]
[1718352667126,6.5929,147.93,147.86,65.0]
[1718352667127,6.17,147.91,147.86,65.0]
[1718352668127,6.17,147.92,147.86,71.17]
[1718352668929,15.551,147.96,147.87,6.17]
[1718352669129,6.17,147.93,147.88,71.17]
[1718352669348,6.17,147.93,147.88,6.17]
[1718352670068,15.551,147.96,147.89,20.0]
[1718352670272,6.17,147.94,147.89,26.17]
[1718352670583,6.17,147.94,147.89,20.0]
[1718352670866,6.4879,147.97,147.9,6.17]
[1718352671041,6.17,147.96,147.91,20.0]
[1718352671237,6.17,147.95,147.91,20.0]
[1718352672469,6.17,147.95,147.9,20.0]
[1718352673093,6.17,147.95,147.9,26.17]
[1718352674273,6.17,147.95,147.9,20.0]
[1718352675560,6.4879,147.97,147.9,20.0]
[1718352675765,6.17,147.92,147.86,2.5023]
[1718352675965,6.17,147.92,147.86,6.17]
[1718352676362,6.17,147.92,147.86,8.6723]
[1718352676774,6.17,147.93,147.87,6.17]
[1718352677085,6.17,147.93,147.88,20.0]
[1718352679092,6.17,147.93,147.87,26.17]
[1718352679483,6.17,147.93,147.87,20.0]
[1718352679668,6.17,147.93,147.84,15.8487]
[1718352679669,6.17,147.91,147.86,20.0]
[1718352679865,6.17,147.89,147.84,22.0187]
[1718352680065,6.17,147.89,147.85,45.0]
[1718352680300,6.17,147.9,147.85,51.17]
[1718352680667,6.17,147.91,147.85,53.6725]
[1718352680862,6.4879,147.97,147.86,20.31]
[1718352681092,6.17,147.95,147.89,6.17]
[1718352681471,20.0,147.96,147.89,6.17]
[1718352681681,6.17,147.95,147.89,6.17]
[1718352681876,6.17,147.94,147.87,45.0]
[1718352682089,6.17,147.92,147.88,20.0]
[1718352682289,6.17,147.93,147.88,20.0]
[1718352683001,20.0,147.96,147.88,20.0]
[1718352683164,0.17,147.95,147.88,20.0]
[1718352684497,6.4879,147.97,147.89,45.0]
[1718352684700,22.2263,148.0,147.89,45.0]
[1718352685000,20.0,147.99,147.89,45.0]
[1718352685480,22.2263,148.0,147.9,20.0]
[1718352685679,22.2263,148.0,147.91,45.0]
[1718352686983,20.0,147.99,147.91,45.0]
[1718352687391,20.0,147.99,147.9,35.3192]
[1718352687878,0.17,147.98,147.9,35.3192]
[1718352688082,0.68,147.98,147.9,35.3192]
[1718352688709,264.12,147.98,147.86,15.2651]
[1718352689076,0.17,147.96,147.86,15.2651]
[1718352689275,0.17,147.94,147.86,15.2651]
[1718352689499,20.51,147.94,147.86,15.2651]
[1718352691417,20.51,147.94,147.86,17.7674]
[1718352691418,20.0,147.94,147.86,17.7674]
[1718352691607,20.0,147.94,147.87,45.0]
[1718352692408,0.17,147.96,147.87,45.0]
[1718352692606,0.17,147.97,147.87,45.0]
[1718352692607,20.68,147.97,147.87,45.0]
[1718352696900,0.68,147.97,147.88,20.0]
[1718352698130,20.17,147.97,147.88,20.0]
[1718352698315,20.0,147.97,147.89,45.0]
[1718352698521,20.0,147.99,147.9,20.0]
[1718352701221,0.34,147.98,147.9,20.0]
[1718352706432,0.17,147.98,147.9,20.0]
[1718352706635,20.0,147.99,147.9,20.0]
[1718352706801,6.14,147.96,147.9,26.14]
[1718352707002,22.2263,148.0,147.92,16.1178]
[1718352707309,6.14,147.97,147.92,22.2578]
[1718352708010,0.836066,148.02,147.93,65.0]
[1718352708222,6.14,148.0,147.95,6.14]
[1718352708420,6.14,148.0,147.93,65.0]
[1718352708618,6.14,148.0,147.94,6.14]
[1718352708812,0.836066,148.02,147.93,65.0]
[1718352711328,0.836066,148.02,147.93,67.5011]
[1718352711907,0.836066,148.02,147.93,65.0]
[1718352712104,0.836066,148.02,147.94,16.7803]
[1718352712328,0.836066,148.02,147.98,15.8793]
[1718352712636,0.836066,148.02,147.99,20.0]
[1718352714915,0.836066,148.02,148.01,2.4998]
[1718352715124,0.836066,148.02,148.01,22.6698]
[1718352715335,0.836066,148.02,148.01,65.34]
[1718352716234,0.836066,148.02,148.01,67.8398]
[1718352716611,0.836066,148.02,148.01,65.34]
[1718352718510,0.836066,148.02,148.01,20.0]
[1718352718714,0.836066,148.02,147.99,1.49795991]
[1718352718715,0.836066,148.02,147.98,15.8793]
[1718352720238,0.836066,148.02,147.94,17.84006618]
[1718352721109,0.836066,148.02,147.9,24.08107773]
[1718352721110,0.68,148.01,147.9,24.08107773]
[1718352721746,0.68,148.01,147.9,15.188]
[1718352721905,45.68,148.01,147.9,15.188]
[1718352722109,0.836066,148.02,147.96,18.1989]
[1718352722348,0.836066,148.02,147.96,15.6983]
[1718352723052,0.836066,148.02,147.97,20.0]
[1718352723437,0.836066,148.02,147.92,15.6743]
[1718352723748,15.9618,148.01,147.92,15.6743]
[1718352723909,0.34,148.0,147.92,15.6743]
[1718352724348,16.1318,148.01,147.92,18.1756]
[1718352724569,15.7918,148.01,147.92,15.6743]
[1718352724750,15.7918,148.01,147.93,2.5011]
[1718352725066,15.7918,148.01,147.93,65.0]
[1718352725267,15.7918,148.01,147.93,67.5011]
[1718352725470,15.7918,148.01,147.93,65.0]
[1718352725852,15.7918,148.01,147.93,67.5011]
[1718352726356,0.836066,148.02,147.96,2.5006]
[1718352726676,0.836066,148.02,147.94,20.0]
[1718352727379,0.836066,148.02,147.95,47.5006]
[1718352727671,0.836066,148.02,147.96,20.0]
[1718352728054,0.836066,148.02,147.96,22.5006]
[1718352728376,0.836066,148.02,147.96,20.0]
[1718352728872,0.836066,148.02,147.96,22.5006]
[1718352729381,0.836066,148.02,147.96,20.0]
[1718352730774,0.17,148.01,147.92,15.6743]
[1718352730960,0.68,148.01,147.92,18.1756]
[1718352731274,0.68,148.01,147.92,15.6743]
[1718352732074,0.68,148.01,147.93,20.0]
[1718352732847,0.836066,148.02,147.94,2.501]
[1718352733064,0.836066,148.02,147.94,2.5009]
[1718352733274,0.836066,148.02,147.94,45.0]
[1718352733468,0.836066,148.02,147.95,20.0]
[1718352736364,6.2993,148.01,147.93,20.0]
[1718352737263,6.2993,148.01,147.93,22.5011]
[1718352737477,6.2993,148.01,147.94,2.501]
[1718352738091,6.2993,148.01,147.95,2.5007]
[1718352738257,6.2993,148.01,147.95,67.5007]
[1718352738450,6.2993,148.01,147.96,2.5006]
[1718352738646,6.2993,148.01,147.96,67.5006]
[1718352739479,0.836066,148.02,147.96,67.5006]
[1718352741067,0.836066,148.02,147.97,2.5004]
[1718352741390,0.836066,148.02,147.97,67.5004]
[1718352742767,0.836066,148.02,147.97,65.0]
[1718352744294,0.836066,148.02,147.97,20.0]
[1718352744586,0.836066,148.02,147.95,22.5008]
[1718352744786,0.836066,148.02,147.96,45.0]
[1718352744985,0.836066,148.02,147.97,20.0]
[1718352745359,0.836066,148.02,147.96,45.0]
[1718352746093,0.836066,148.02,147.94,2.5009]
[1718352746578,0.836066,148.02,147.94,22.5009]
[1718352746774,0.836066,148.02,147.95,45.0]
[1718352746965,0.836066,148.02,147.96,20.0]
[1718352754977,6.976066,148.02,147.97,6.14]
[1718352755177,6.976066,148.02,147.96,26.14]
[1718352756206,0.836066,148.02,147.96,26.14]
[1718352757005,6.976066,148.02,147.97,6.14]
[1718352757582,0.836066,148.02,147.97,6.14]
[1718352763287,0.836066,148.02,147.96,20.0]
[1718352763498,0.836066,148.02,147.97,6.14]
[1718352764300,0.836066,148.02,147.98,6.14]
[1718352765608,0.836066,148.02,147.99,26.14]
[1718352765987,0.836066,148.02,148.0,71.14]
[1718352766186,0.836066,148.02,148.01,6.14]
[1718352766492,0.836066,148.02,148.01,26.14]
[1718352768814,0.836066,148.02,148.01,71.14]
[1718352771191,0.836066,148.02,148.01,65.0]
[1718352772117,0.836066,148.02,148.01,71.14]
[1718352779096,15.795,148.11,148.03,20.31]
[1718352779299,6.1309,148.13,148.07,2.4986]
[1718352779520,6.1309,148.13,148.11,6.14]
[1718352779742,6.1309,148.13,148.08,0.17]
[1718352779743,6.1309,148.13,148.12,6.14]
[1718352779912,5.830466,148.17,148.12,6.14]
[1718352779913,0.836066,148.17,148.12,26.14]
[1718352780236,0.836066,148.17,148.13,20.0]
[1718352780411,6.976066,148.17,148.1,20.31]
[1718352780723,6.976066,148.17,148.06,0.17]
[1718352780724,6.14,148.16,148.06,0.17]
[1718352780925,0.836066,148.17,148.06,65.68]
[1718352781106,0.836066,148.17,148.1,6.14]
[1718352781309,0.836066,148.17,148.11,26.14]
[1718352781496,0.836066,148.17,148.11,6.14]
[1718352781833,0.836066,148.17,148.14,6.14]
[1718352782329,0.836066,148.17,148.16,6.14]
[1718352782624,0.836066,148.17,148.16,94.4573]
[1718352782826,0.51409874,148.17,148.16,71.14]
[1718352782997,0.51409874,148.17,148.11,15.1452]
[1718352783311,0.51409874,148.17,148.14,6.14]
[1718352783625,0.51409874,148.17,148.12,20.0]
[1718352783832,0.51409874,148.17,148.13,6.14]
[1718352784022,0.51409874,148.17,148.14,26.14]
[1718352784334,0.51409874,148.17,148.14,20.0]
[1718352784500,0.51409874,148.17,148.13,6.14]
[1718352784703,17.03389874,148.17,148.09,20.0]
[1718352784929,23.17389874,148.17,148.12,6.14]
[1718352785129,23.17389874,148.17,148.13,20.0]
[1718352785130,17.03389874,148.17,148.13,20.0]
[1718352785310,17.03389874,148.17,148.14,6.14]
[1718352786013,17.03389874,148.17,148.13,20.0]
[1718352786331,17.03389874,148.17,148.13,26.14]
[1718352787118,6.14,148.15,148.07,16.2713]
[1718352787420,6.14,148.14,148.08,6.14]
[1718352787731,6.14,148.15,148.09,6.14]
[1718352788108,17.03389874,148.17,148.09,6.14]
[1718352788330,6.14,148.12,148.03,32.43172541]
[1718352788636,6.14,148.11,148.05,6.14]
[1718352788803,6.14,148.1,148.04,6.14]
[1718352789222,6.14,148.11,148.05,6.14]
[1718352789639,6.5004,148.14,148.0,1.17369937]
[1718352789640,6.14,148.09,148.04,6.14]
[1718352790006,6.14,148.08,148.02,6.14]
[1718352790208,12.1904,148.07,148.01,6.14]
[1718352790412,12.1904,148.07,148.0,1.17369937]
[1718352790631,6.14,148.06,148.0,1.17369937]
[1718352790839,6.0504,148.07,147.95,47.02970809]
[1718352791012,6.0504,148.07,147.98,1.17491087]
[1718352791537,6.0504,148.07,147.99,22.8101]
[1718352791703,6.0504,148.07,148.0,2.4999]
[1718352791905,6.0504,148.07,148.0,22.8099]
[1718352792332,6.0504,148.07,148.01,2.6697]
[1718352792713,6.0504,148.07,148.01,0.17]
[1718352792914,6.0504,148.07,148.01,45.51]
[1718352793317,15.336,148.1,148.01,65.82]
[1718352793622,15.336,148.1,148.03,0.17]
[1718352794010,15.336,148.1,148.03,45.51]
[1718352794229,15.336,148.1,148.04,20.0]
[1718352794431,15.336,148.1,148.05,45.0]
[1718352794638,15.336,148.1,148.06,20.0]
[1718352795218,15.336,148.1,148.02,0.17]
[1718352795419,15.336,148.1,148.02,65.0]
[1718352796335,15.336,148.1,148.02,67.4996]
[1718352796540,15.336,148.1,148.02,65.0]
[1718352796722,15.336,148.1,147.98,1.17468339]
[1718352796923,15.336,148.1,147.99,2.5]
[1718352797326,15.336,148.1,147.99,22.81]
[1718352797519,15.336,148.1,148.01,22.8097]
[1718352797711,15.336,148.1,147.99,2.5001]
[1718352798027,0.17,148.09,147.98,3.67488339]
[1718352798222,0.34,148.09,147.99,2.5001]
[1718352798418,0.34,148.09,147.99,0.17]
[1718352798736,0.34,148.09,147.99,0.51]
[1718352799045,0.34,148.09,147.99,3.0101]
[1718352799559,100.34,148.09,147.99,0.51]
[1718352799761,100.34,148.09,147.99,20.51]
[1718352800060,100.34,148.09,148.0,45.0]
[1718352800225,100.34,148.09,148.01,20.0]
[1718352802157,6.1814,148.08,147.98,1.17468339]
[1718352802368,15.7212,148.06,147.98,1.17468339]
[1718352802864,15.7212,148.06,147.98,3.67488339]
[1718352803232,15.7212,148.06,147.99,22.81]
[1718352803433,15.7212,148.06,148.0,2.4999]
[1718352803642,15.7212,148.06,148.0,22.4999]
[1718352803931,15.7212,148.06,148.01,45.0]
[1718352804126,15.7212,148.06,148.02,20.0]
[1718352804346,6.1814,148.08,148.03,0.17]
[1718352804555,6.1814,148.08,148.03,48.1793]
[1718352804862,6.1814,148.08,148.04,20.0]
[1718352805047,6.1814,148.08,148.05,45.0]
[1718352805357,6.1814,148.08,148.06,20.0]
[1718352806462,16.1045,148.1,148.06,20.0]
[1718352806639,16.1045,148.1,148.06,20.47219093]
[1718352807032,6.2192,148.12,148.07,47.6688]
[1718352807233,6.2192,148.12,148.08,20.49293473]
[1718352807486,16.5766,148.13,148.09,65.31]
[1718352807634,6.3004,148.16,148.1,20.0]
[1718352807844,6.3004,148.16,148.11,45.0]
[1718352808048,6.3004,148.16,148.12,20.0]
[1718352809734,0.51409874,148.17,148.13,65.48]
[1718352809940,0.51409874,148.17,148.14,20.0]
[1718352810138,0.51409874,148.17,148.16,2.4973]
[1718352810360,0.51409874,148.17,148.16,20.65]
[1718352810570,0.51409874,148.17,148.16,85.99]
[1718352812473,0.51409874,148.17,148.16,88.4873]
[1718352812950,0.51409874,148.17,148.16,85.99]
[1718352813355,0.51409874,148.17,148.16,65.68]
[1718352814381,0.51409874,148.17,148.16,65.0]
[1718352815579,0.51409874,148.17,148.14,1.49644314]
[1718352817452,0.51409874,148.17,148.14,46.49644314]
[1718352817651,0.51409874,148.17,148.15,20.0]
[1718352819260,0.51409874,148.17,148.16,45.0]
[1718352819463,0.51409874,148.17,148.16,65.0]
[1718352820162,0.51409874,148.17,148.16,20.0]
[1718352820554,0.51409874,148.17,148.13,22.4977]
[1718352820758,0.51409874,148.17,148.14,45.0]
[1718352820979,0.51409874,148.17,148.15,20.0]
[1718352821270,0.51409874,148.17,148.16,45.0]
[1718352821477,0.51409874,148.17,148.16,65.0]
[1718352822985,0.51409874,148.17,148.16,65.17]
[1718352823302,0.51409874,148.17,148.16,65.0]
[1718352825198,0.51409874,148.17,148.16,20.0]
[1718352825362,0.51409874,148.17,148.16,45.17]
[1718352825561,0.51409874,148.17,148.16,65.17]
[1718352825997,0.51409874,148.17,148.16,65.0]
[1718352826596,0.51409874,148.17,148.16,65.68]
[1718352826753,0.51409874,148.17,148.16,88.4873]
[1718352829164,0.51409874,148.17,148.16,65.51]
[1718352829364,0.51409874,148.17,148.16,65.0]
[1718352830392,0.51409874,148.17,148.16,65.17]
[1718352830594,0.51409874,148.17,148.16,85.99]
[1718352831171,0.51409874,148.17,148.16,88.4873]
[1718352831496,0.51409874,148.17,148.16,85.99]
[1718352832418,0.51409874,148.17,148.16,65.0]
[1718352833977,0.51409874,148.17,148.16,65.34]
[1718352834176,0.51409874,148.17,148.16,65.68]
[1718352834918,0.51409874,148.17,148.16,88.4873]
[1718352835220,0.51409874,148.17,148.16,89.98354114]
[1718352835877,21.5462,148.28,148.2,20.48]
[1718352836103,21.5462,148.28,148.19,2.4967]
[1718352836104,21.5462,148.28,148.22,0.17]
[1718352836600,21.5462,148.28,148.21,65.34]
[1718352837124,21.5462,148.28,148.22,0.34]
[1718352837280,21.5462,148.28,148.22,20.65]
[1718352837482,21.5462,148.28,148.23,65.0]
[1718352838597,21.5462,148.28,148.21,0.17]
[1718352838801,21.5462,148.28,148.18,20.48]
[1718352839005,21.5462,148.28,148.2,0.17]
[1718352839178,21.5462,148.28,148.2,22.9765]
[1718352839376,21.5462,148.28,148.21,85.82]
[1718352839583,21.5462,148.28,148.22,65.0]
[1718352841878,21.5462,148.28,148.22,85.31]
[1718352843402,21.5462,148.28,148.22,65.0]
[1718352844708,20.92219735,148.28,148.22,65.0]
[1718352846421,20.92219735,148.28,148.23,0.17]
[1718352846714,20.92219735,148.28,148.23,20.99]
[1718352846920,20.92219735,148.28,148.25,6.12]
[1718352847094,20.92219735,148.28,148.26,20.0]
[1718352847801,20.92219735,148.28,148.25,20.0]
[1718352848012,20.92219735,148.28,148.26,45.0]
[1718352852490,5.72869735,148.28,148.26,45.0]
[1718352855936,0.836066,148.31,148.26,45.0]
[1718352857236,6.956066,148.31,148.26,51.12]
[1718352858218,6.956066,148.31,148.26,45.0]
[1718352859848,0.836066,148.31,148.27,0.17]
[1718352860922,6.956066,148.31,148.27,0.17]
[1718352861124,6.956066,148.31,148.26,65.31]
[1718352861320,0.836066,148.31,148.26,65.31]
[1718352861614,6.956066,148.31,148.26,45.0]
[1718352862043,0.836066,148.31,148.2,50.86115461]
[1718352862245,6.12,148.27,148.21,6.12]
[1718352862545,0.836066,148.31,148.2,1.49583729]
[1718352862546,6.12,148.25,148.2,1.49583729]
[1718352862752,6.12,148.25,148.19,34.53850809]
[1718352863128,6.12,148.25,148.19,28.41850809]
[1718352863441,6.12,148.25,148.2,6.12]
[1718352863648,28.7857,148.26,148.2,6.12]
[1718352863865,28.7857,148.26,148.21,65.0]
[1718352864152,6.5473,148.26,148.21,85.31]
[1718352864342,12.3092,148.29,148.22,20.48]
[1718352864659,6.12,148.28,148.23,71.12]
[1718352864958,6.1892,148.29,148.23,91.43]
[1718352865154,6.12,148.28,148.23,91.43]
[1718352865462,6.1892,148.29,148.25,6.12]
[1718352865767,6.1892,148.29,148.26,45.0]
[1718352867256,0.836066,148.31,148.26,71.43]
[1718352868330,0.836066,148.31,148.27,6.12]
[1718352868552,0.836066,148.31,148.28,45.0]
[1718352869242,0.836066,148.31,148.27,45.0]
[1718352873252,0.836066,148.31,148.27,6.12]
[1718352873444,0.836066,148.31,148.28,45.0]
[1718352875644,0.836066,148.31,148.27,45.0]
[1718352877174,6.956066,148.31,148.25,6.3721]
[1718352877349,6.956066,148.31,148.26,20.0]
[1718352877546,6.956066,148.31,148.26,26.12]
[1718352877745,0.836066,148.31,148.27,6.12]
[1718352884276,0.836066,148.31,148.25,6.3721]
[1718352884451,0.836066,148.31,148.22,6.12]
[1718352884452,6.12,148.28,148.22,6.12]
[1718352885368,6.12,148.25,148.2,8.52718031]
[1718352885675,28.1434,148.26,148.2,14.64718031]
[1718352885971,6.12,148.25,148.2,8.52718031]
[1718352886173,6.12,148.25,148.2,14.64718031]
[1718352886551,22.0234,148.26,148.2,6.12]
[1718352886758,28.1434,148.26,148.2,6.12]
[1718352887370,28.1434,148.26,148.21,6.12]
[1718352887559,28.1434,148.26,148.2,6.12]
[1718352889284,28.1434,148.26,148.19,1.17311205]
[1718352889586,28.1434,148.26,148.2,6.12]
[1718352890377,6.12,148.25,148.2,6.12]
[1718352890568,6.12,148.24,148.19,66.17311205]
[1718352890768,22.0234,148.26,148.19,21.17311205]
[1718352890769,6.12,148.23,148.19,21.17311205]
[1718352891282,6.12,148.23,148.19,20.0]
[1718352891479,6.12,148.23,148.18,6.12]
[1718352891681,6.12,148.23,148.19,20.0]
[1718352891979,6.12,148.23,148.18,7.29333817]
[1718352892182,6.12,148.23,148.19,20.0]
[1718352892380,6.12,148.24,148.19,20.0]
[1718352892684,6.12,148.24,148.18,1.17333817]
[1718352892685,6.12,148.23,148.18,1.17333817]
[1718352893259,6.12,148.22,148.17,71.12]
[1718352893670,6.12,148.22,148.17,65.0]
[1718352894090,22.0234,148.26,148.17,65.0]
[1718352894402,6.12,148.23,148.18,6.12]
[1718352894572,6.12,148.23,148.17,45.0]
[1718352894573,6.12,148.23,148.17,51.12]
[1718352894768,6.12,148.23,148.17,45.0]
[1718352894979,6.12,148.23,148.17,51.12]
[1718352895292,6.12,148.22,148.17,51.12]
[1718352895695,28.1434,148.26,148.17,51.12]
[1718352895990,22.0234,148.26,148.18,6.12]
[1718352896196,6.12,148.24,148.18,6.12]
[1718352896896,6.12,148.23,148.18,6.12]
[1718352897266,6.12,148.23,148.17,51.12]
[1718352898691,6.12,148.22,148.17,45.0]
[1718352898895,6.12,148.22,148.17,51.12]
[1718352899517,6.12,148.23,148.17,51.12]
[1718352899671,22.0234,148.26,148.17,51.12]
[1718352899876,6.12,148.23,148.18,20.0]
[1718352900381,22.0234,148.26,148.18,26.12]
[1718352900718,6.12,148.22,148.18,20.0]
[1718352901481,6.12,148.2,148.14,20.31]
[1718352901681,0.51,148.25,148.15,20.0]
[1718352901892,6.12,148.2,148.15,6.12]
[1718352902301,6.12,148.2,148.14,1.17361162]
[1718352902502,6.12,148.2,148.14,7.29361162]